bitfinex/quotes_SOLUSD_20251116
["timestamp","ask_amount","ask_price","bid_price","bid_amount"]
[1763324791206,5.85091633,137.99,137.96,9.78882769]
[1763324791394,0.71,138.01,137.96,5.85091633]
[1763324791395,6.56091633,138.01,137.96,5.85091633]
[1763324791594,6.56091633,138.01,137.97,9.78882769]
[1763324791789,0.71,138.0,137.97,9.78882769]
[1763324791988,0.71,138.0,137.96,15.63974402]
[1763324794315,0.71,138.02,137.99,9.78882769]
[1763324795321,0.71,138.02,137.99,5.85091633]
[1763324795705,0.71,138.02,138.01,9.78882769]
[1763324795896,0.71,138.05,138.01,15.63974402]
[1763324796098,0.71,138.04,138.01,15.63974402]
[1763324796297,17.42,138.07,138.04,9.78882769]
[1763324796499,0.71,138.06,138.04,9.78882769]
[1763324797216,0.71,138.06,138.03,5.85091633]
[1763324798097,6.56091633,138.06,138.03,9.78882769]
[1763324798299,5.85091633,138.05,138.01,9.78882769]
[1763324798513,6.56091633,138.05,138.01,9.78882769]
[1763324798810,0.71,138.04,138.01,9.78882769]
[1763324799021,0.71,138.04,138.01,15.63974402]
[1763324799216,17.42,138.07,137.99,22.6512]
[1763324799217,23.27091633,138.07,138.03,9.78882769]
[1763324799420,0.71,138.05,138.03,9.78882769]
[1763324801525,17.42,138.07,138.03,10.46882769]
[1763324801707,17.42,138.07,138.05,9.78882769]
[1763324802025,18.13,138.07,138.05,9.78882769]
[1763324802326,0.71,138.09,138.05,5.85091633]
[1763324802629,0.71,138.09,138.07,9.78882769]
[1763324803723,5.85091633,138.12,138.07,15.63974402]
[1763324804024,5.85091633,138.11,138.07,9.78882769]
[1763324804621,0.71,138.1,138.07,9.78882769]
[1763324805325,0.71,138.1,138.07,5.85091633]
[1763324807326,0.71,138.1,138.06,15.63974402]
[1763324807527,6.56091633,138.1,138.06,9.78882769]
[1763324808028,22.6512,138.13,138.04,22.6512]
[1763324808029,6.56091633,138.09,138.04,5.85091633]
[1763324808325,5.85091633,138.08,138.03,15.63974402]
[1763324808620,6.56091633,138.08,138.03,15.63974402]
[1763324808805,6.56091633,138.07,138.01,9.78882769]
[1763324809004,6.56091633,138.07,138.01,15.63974402]
[1763324809316,5.85091633,138.05,138.01,9.78882769]
[1763324809633,0.71,138.04,138.0,9.78882769]
[1763324809824,0.71,138.04,138.0,15.63974402]
[1763324810128,0.71,138.04,138.0,5.85091633]
[1763324810514,0.71,138.04,138.01,9.78882769]
[1763324810833,0.71,138.04,138.02,9.78882769]
[1763324811523,0.71,138.04,138.0,5.85091633]
[1763324813231,0.71,138.04,138.02,9.78882769]
[1763324816646,0.71,138.04,138.0,5.85091633]
[1763324816834,0.71,138.04,137.99,5.85091633]
[1763324817640,0.71,138.04,138.01,9.78882769]
[1763324818744,0.71,138.04,138.01,5.85091633]
[1763324820335,22.6512,138.06,138.03,9.78882769]
[1763324820642,0.72,138.06,138.03,15.61721691]
[1763324820833,0.72,138.06,138.02,5.85091633]
[1763324821028,5.85091633,138.04,137.95,10.45882769]
[1763324821227,5.85091633,138.02,137.96,5.85091633]
[1763324821442,5.85091633,138.02,137.97,5.85091633]
[1763324821743,5.85091633,137.99,137.94,5.85091633]
[1763324821945,5.85091633,137.98,137.93,5.85091633]
[1763324822328,0.72,137.97,137.93,5.85091633]
[1763324822646,0.72,137.97,137.94,9.78882769]
[1763324823522,0.72,137.97,137.94,5.85091633]
[1763324824763,22.6512,138.01,137.96,15.63974402]
[1763324825051,0.72,138.02,137.99,5.85091633]
[1763324825258,0.72,138.04,138.0,5.85091633]
[1763324825427,0.72,138.04,137.95,7.24868668]
[1763324825428,0.72,138.04,138.02,9.78882769]
[1763324825944,0.72,138.04,138.02,5.85091633]
[1763324826143,0.72,138.06,138.02,5.85091633]
[1763324826528,0.72,138.06,138.03,5.85091633]
[1763324826729,0.72,138.06,138.04,15.63974402]
[1763324828564,0.72,138.06,138.04,9.78882769]
[1763324828760,6.57091633,138.06,138.04,9.78882769]
[1763324829045,6.57091633,138.06,138.01,5.85091633]
[1763324829257,0.72,138.05,138.01,5.85091633]
[1763324829638,0.72,138.05,138.02,9.78882769]
[1763324829839,0.72,138.05,138.02,15.63974402]
[1763324831960,0.72,138.05,138.02,9.78882769]
[1763324832640,0.72,138.05,138.02,5.85091633]
[1763324832827,0.72,138.05,138.03,9.78882769]
[1763324833944,113.36092729,138.07,138.05,9.78882769]
[1763324833945,103.2,138.07,138.05,9.78882769]
[1763324834133,103.92,138.07,138.05,9.78882769]
[1763324834330,103.92,138.07,138.04,9.78882769]
[1763324834634,0.72,138.06,138.04,19.94975498]
[1763324834836,0.72,138.06,138.04,9.78882769]
[1763324835051,0.72,138.06,138.02,9.78882769]
[1763324835244,33.53212729,138.06,138.01,10.16092729]
[1763324835451,33.53212729,138.06,138.02,9.78882769]
[1763324835632,0.71,138.05,138.02,9.78882769]
[1763324836234,0.71,138.05,138.03,19.94975498]
[1763324836433,23.3612,138.06,138.03,19.94975498]
[1763324836654,23.3612,138.06,138.01,0.69]
[1763324836655,23.3612,138.06,138.05,9.78882769]
[1763324837259,23.3612,138.06,138.02,9.78882769]
[1763324837440,0.71,138.05,138.02,19.94975498]
[1763324837850,103.2,138.07,138.05,9.78882769]
[1763324838055,103.91,138.07,138.05,9.78882769]
[1763324838251,103.2,138.07,138.05,9.78882769]
[1763324838558,103.91,138.07,138.05,19.94975498]
[1763324838859,103.2,138.07,138.05,19.94975498]
[1763324839256,103.91,138.07,138.05,19.94975498]
[1763324840274,0.71,138.1,138.07,9.78882769]
[1763324840578,0.71,138.09,138.07,9.78882769]
[1763324842767,10.87092729,138.09,138.05,9.78882769]
[1763324842947,114.07092729,138.09,138.05,9.78882769]
[1763324843141,0.71,138.08,138.05,9.78882769]
[1763324843576,103.91,138.09,138.07,9.78882769]
[1763324844149,103.91,138.09,138.06,10.16092729]
[1763324844468,103.91,138.09,138.07,19.94975498]
[1763324845157,103.2,138.09,138.07,19.94975498]
[1763324845353,103.2,138.09,138.08,19.94975498]
[1763324846654,0.71,138.12,138.09,9.78882769]
[1763324846874,103.2,138.13,138.09,20.63975498]
[1763324847072,103.91,138.13,138.09,20.63975498]
[1763324847265,103.2,138.13,138.12,9.78882769]
[1763324848164,103.91,138.13,138.11,9.78882769]
[1763324849365,103.2,138.13,138.11,9.78882769]
[1763324849570,103.91,138.13,138.11,9.78882769]
[1763324849972,103.2,138.13,138.11,9.78882769]
[1763324851065,103.2,138.13,138.12,9.78882769]
[1763324852477,103.86,138.13,138.1,9.78882769]
[1763324852880,0.66,138.12,138.1,9.78882769]
[1763324853385,103.2,138.13,138.1,9.78882769]
[1763324853580,103.86,138.13,138.1,19.94975498]
[1763324853969,103.2,138.13,138.1,20.61975498]
[1763324854276,103.2,138.13,138.12,19.94975498]
[1763324854492,0.1,138.14,138.12,19.94975498]
[1763324856896,0.1,138.14,138.12,13.61333541]
[1763324857395,0.76,138.14,138.12,13.61333541]
[1763324858692,0.76,138.14,138.12,9.78882769]
[1763324859677,0.76,138.14,138.1,0.67]
[1763324859895,0.76,138.14,138.12,9.78882769]
[1763324860076,0.76,138.14,138.1,0.67]
[1763324860500,0.1,138.14,138.13,10.14675789]
[1763324860820,0.1,138.2,138.14,9.78882769]
[1763324861023,0.1,138.2,138.18,19.93558558]
[1763324861299,0.1,138.2,138.18,9.78882769]
[1763324861703,0.1,138.2,138.18,19.93558558]
[1763324861891,0.1,138.2,138.19,20.55558558]
[1763324862916,0.66,138.29,138.23,9.78882769]
[1763324863077,0.66,138.28,138.24,10.14675789]
[1763324863474,0.16,138.28,138.24,10.14675789]
[1763324864098,1.93593088,138.32,138.27,19.93558558]
[1763324864300,1.93593088,138.32,138.31,9.78882769]
[1763324864483,1.93593088,138.32,138.31,19.93558558]
[1763324864684,10.14675789,138.42,138.31,20.60558558]
[1763324864896,10.14675789,138.42,138.3,10.14675789]
[1763324864897,10.14675789,138.42,138.37,10.14675789]
[1763324865087,10.14675789,138.43,138.37,10.14675789]
[1763324865284,50.0,138.49,138.39,9.78882769]
[1763324865506,10.14675789,138.43,138.39,9.78882769]
[1763324865712,52.65999999,138.49,138.39,9.78882769]
[1763324865713,10.14675789,138.44,138.39,9.78882769]
[1763324866007,32.79795789,138.43,138.39,9.78882769]
[1763324866228,32.79795789,138.43,138.31,7.22983391]
[1763324866229,22.6512,138.4,138.33,0.67]
[1763324866410,32.79795789,138.4,138.35,9.78882769]
[1763324866586,10.80675789,138.39,138.34,9.78882769]
[1763324867118,0.66,138.38,138.34,9.78882769]
[1763324867322,10.80675789,138.38,138.34,9.78882769]
[1763324867521,0.66,138.38,138.34,9.78882769]
[1763324867689,0.66,138.37,138.34,19.93558558]
[1763324867886,0.66,138.37,138.34,10.14675789]
[1763324869206,0.66,138.37,138.31,0.67]
[1763324869410,0.66,138.37,138.32,9.78882769]
[1763324869616,10.14675789,138.34,138.32,9.78882769]
[1763324869816,10.14675789,138.33,138.27,10.14675789]
[1763324870118,10.14675789,138.32,138.27,10.14675789]
[1763324870308,0.66,138.31,138.27,10.14675789]
[1763324870494,0.66,138.31,138.28,9.78882769]
[1763324871796,10.80675789,138.34,138.3,9.78882769]
[1763324872100,10.14675789,138.33,138.29,9.78882769]
[1763324872520,0.66,138.32,138.29,19.93558558]
[1763324872821,0.66,138.34,138.29,20.60558558]
[1763324873019,0.66,138.33,138.29,19.93558558]
[1763324873318,10.14675789,138.32,138.28,9.78882769]
[1763324873643,10.14675789,138.3,138.25,10.14675789]
[1763324873919,10.14675789,138.3,138.26,9.78882769]
[1763324874128,0.66,138.29,138.26,9.78882769]
[1763324874428,0.66,138.29,138.26,19.93558558]
[1763324874629,0.66,138.29,138.26,9.78882769]
[1763324875120,0.66,138.29,138.25,9.78882769]
[1763324875439,0.66,138.29,138.25,10.14675789]
[1763324875605,0.66,138.29,138.21,22.6512]
[1763324875606,0.66,138.32,138.27,19.93558558]
[1763324875993,33.45795789,138.32,138.27,19.93558558]
[1763324876304,10.14675789,138.31,138.27,9.78882769]
[1763324876504,22.6512,138.32,138.28,10.14675789]
[1763324876816,22.6512,138.3,138.29,9.78882769]
[1763324877014,0.66,138.32,138.28,10.14675789]
[1763324878826,22.6512,138.32,138.29,20.60558558]
[1763324879011,32.79795789,138.35,138.31,9.78882769]
[1763324879216,22.6512,138.35,138.31,19.93558558]
[1763324879414,22.6512,138.35,138.31,20.60558558]
[1763324879927,23.3112,138.35,138.31,20.60558558]
[1763324880107,0.66,138.35,138.31,20.60558558]
[1763324880510,23.3412,138.37,138.33,19.93558558]
[1763324880824,0.69,138.37,138.33,19.93558558]
[1763324881521,0.69,138.37,138.34,10.14675789]
[1763324881727,10.83675789,138.37,138.33,9.78882769]
[1763324881925,10.83675789,138.37,138.28,22.6512]
[1763324881926,10.14675789,138.35,138.28,0.68]
[1763324882117,10.14675789,138.34,138.29,19.93558558]
[1763324882522,0.69,138.33,138.25,9.78882769]
[1763324882720,10.14675789,138.32,138.27,19.93558558]
[1763324883026,10.14675789,138.36,138.31,9.78882769]
[1763324883328,0.69,138.32,138.27,9.78882769]
[1763324883531,10.83675789,138.32,138.27,19.93558558]
[1763324884027,0.69,138.31,138.27,10.14675789]
[1763324884524,0.69,138.31,138.27,19.93558558]
[1763324884733,0.69,138.31,138.27,10.14675789]
[1763324886234,10.83675789,138.31,138.25,10.14675789]
[1763324886413,10.83675789,138.31,138.22,9.78882769]
[1763324886414,10.14675789,138.28,138.22,9.78882769]
[1763324886734,10.14675789,138.28,138.24,9.78882769]
[1763324886912,10.83675789,138.27,138.23,9.78882769]
[1763324887329,0.69,138.26,138.23,9.78882769]
[1763324887926,10.83675789,138.26,138.22,9.78882769]
[1763324888141,10.83675789,138.26,138.21,10.14675789]
[1763324888334,0.69,138.25,138.2,19.93558558]
[1763324888536,10.83675789,138.25,138.2,9.78882769]
[1763324888926,10.83675789,138.24,138.19,9.78882769]
[1763324889129,0.69,138.23,138.19,9.78882769]
[1763324889811,10.83675789,138.23,138.19,9.78882769]
[1763324890030,10.83675789,138.23,138.17,19.93558558]
[1763324890335,1.99999999,138.28,138.17,19.93558558]
[1763324890336,0.69,138.22,138.17,19.93558558]
[1763324890519,10.14675789,138.24,138.19,19.93558558]
[1763324890714,10.14675789,138.24,138.19,9.78882769]
[1763324890914,0.69,138.23,138.19,10.82675789]
[1763324891109,0.69,138.23,138.18,9.78882769]
[1763324891309,0.69,138.23,138.18,10.46882769]
[1763324891530,0.69,138.23,138.2,9.78882769]
[1763324891829,10.14675789,138.25,138.2,9.78882769]
[1763324891830,0.69,138.25,138.22,9.78882769]
[1763324893244,0.69,138.25,138.19,9.78882769]
[1763324893444,10.14675789,138.23,138.19,9.78882769]
[1763324893748,103.2,138.24,138.22,10.14675789]
[1763324894113,103.2,138.24,138.22,10.82675789]
[1763324894531,103.2,138.24,138.23,19.93558558]
[1763324894722,0.69,138.27,138.23,19.93558558]
[1763324894934,0.69,138.27,138.23,15.60718424]
[1763324896028,103.2,138.28,138.25,15.60718424]
[1763324896545,103.2,138.28,138.24,0.67]
[1763324896546,0.67,138.3,138.27,15.60718424]
[1763324896745,0.67,138.3,138.27,9.78882769]
[1763324897034,0.67,138.3,138.25,5.81835655]
[1763324897220,0.67,138.3,138.26,15.60718424]
[1763324898018,6.48835655,138.3,138.24,15.60718424]
[1763324898434,0.67,138.29,138.24,15.60718424]
[1763324898631,0.67,138.29,138.25,5.81835655]
[1763324899036,6.48835655,138.31,138.26,6.48835655]
[1763324899413,0.67,138.3,138.26,6.48835655]
[1763324900034,0.67,138.3,138.26,9.78882769]
[1763324900443,0.67,138.3,138.26,10.45882769]
[1763324902451,0.67,138.3,138.26,16.27718424]
[1763324902636,0.67,138.3,138.26,10.45882769]
[1763324902823,0.67,138.3,138.26,9.78882769]
[1763324903029,0.67,138.3,138.26,10.45882769]
[1763324904148,22.6512,138.33,138.26,16.27718424]
[1763324904343,0.67,138.3,138.26,16.27718424]
[1763324904536,6.48835655,138.3,138.24,0.67]
[1763324904844,6.48835655,138.3,138.26,9.78882769]
[1763324905147,0.67,138.3,138.26,9.78882769]
[1763324905323,0.67,138.29,138.26,9.78882769]
[1763324907948,5.81835655,138.28,138.21,0.67]
[1763324908120,0.67,138.29,138.23,5.81835655]
[1763324908325,6.48835655,138.28,138.23,6.48835655]
[1763324908727,0.67,138.27,138.23,6.48835655]
[1763324909329,0.67,138.27,138.23,0.67]
[1763324909652,0.67,138.27,138.23,6.48835655]
[1763324910334,0.69,138.29,138.24,10.49882769]
[1763324910664,5.81835655,138.3,138.24,16.31718424]
[1763324910848,103.2,138.32,138.27,5.81835655]
[1763324910849,0.69,138.31,138.27,5.81835655]
[1763324911046,0.69,138.31,138.26,9.78882769]
[1763324911241,6.50835655,138.31,138.26,0.71]
[1763324911432,6.50835655,138.31,138.27,0.71]
[1763324913150,0.69,138.31,138.27,0.71]
[1763324913346,5.81835655,138.31,138.26,15.60718424]
[1763324913527,6.50835655,138.3,138.24,9.78882769]
[1763324913727,6.50835655,138.3,138.24,15.60718424]
[1763324913928,6.50835655,138.3,138.25,6.52835655]
[1763324914424,0.69,138.3,138.26,9.78882769]
[1763324914630,0.69,138.3,138.26,10.49882769]
[1763324916258,0.69,138.3,138.26,9.78882769]
[1763324916470,0.69,138.3,138.26,10.49882769]
[1763324917051,5.81835655,138.28,138.24,9.78882769]
[1763324917439,6.50835655,138.28,138.24,9.78882769]
[1763324918039,0.69,138.28,138.24,9.78882769]
[1763324918258,0.69,138.28,138.24,10.49882769]
[1763324918647,0.69,138.28,138.24,16.31718424]
[1763324918838,0.69,138.3,138.26,9.78882769]
[1763324919238,5.81835655,138.31,138.26,9.78882769]
[1763324919455,0.69,138.33,138.28,15.60718424]
[1763324919657,5.81835655,138.3,138.27,9.78882769]
[1763324920152,0.69,138.3,138.27,9.78882769]
[1763324920352,5.81835655,138.31,138.27,9.78882769]
[1763324920554,6.50835655,138.32,138.27,10.49882769]
[1763324920740,0.69,138.32,138.27,9.78882769]
[1763324920944,6.50835655,138.34,138.29,9.78882769]
[1763324921345,0.69,138.33,138.29,10.49882769]
[1763324921850,0.69,138.33,138.29,16.31718424]
[1763324922255,6.50835655,138.33,138.29,10.49882769]
[1763324922452,0.69,138.33,138.29,10.49882769]
[1763324923361,6.50835655,138.33,138.29,10.49882769]
[1763324923656,6.50835655,138.33,138.29,9.78882769]
[1763324923838,5.81835655,138.31,138.27,9.78882769]
[1763324924156,0.69,138.3,138.27,9.78882769]
[1763324924657,6.50835655,138.3,138.27,9.78882769]
[1763324924961,2.44296507,138.31,138.27,10.49882769]
[1763324925156,2.44296507,138.31,138.27,9.78882769]
[1763324925337,0.69,138.3,138.27,9.78882769]
[1763324925854,22.6512,138.35,138.27,9.78882769]
[1763324926046,2.44296507,138.31,138.27,10.49882769]
[1763324926437,3.13296507,138.31,138.27,10.49882769]
[1763324926636,3.13296507,138.31,138.27,9.78882769]
[1763324926936,5.81571286,138.31,138.27,9.78882769]
[1763324927145,5.81571286,138.28,138.23,0.71]
[1763324927344,5.81571286,138.28,138.24,9.78882769]
[1763324927551,0.69,138.28,138.24,9.78882769]
[1763324927754,5.81571286,138.29,138.24,9.78882769]
[1763324927947,6.50571286,138.28,138.24,9.78882769]
[1763324928381,5.81571286,138.26,138.2,23.3612]
[1763324928544,6.50571286,138.26,138.21,16.31454055]
[1763324928743,6.50571286,138.26,138.23,9.78882769]
[1763324929545,0.69,138.26,138.23,9.78882769]
[1763324930252,5.81571286,138.27,138.24,0.71]
[1763324930568,6.50571286,138.29,138.24,0.71]
[1763324931042,0.69,138.28,138.24,0.71]
[1763324931453,0.69,138.28,138.25,9.78882769]
[1763324931970,5.81571286,138.26,138.22,15.60454055]
[1763324932168,5.81571286,138.26,138.23,9.78882769]
[1763324932375,5.81571286,138.27,138.23,10.49882769]
[1763324932742,6.50571286,138.27,138.23,10.49882769]
[1763324934673,103.2,138.3,138.21,9.78882769]
[1763324934674,6.50571286,138.26,138.21,9.78882769]
[1763324934964,5.81571286,138.25,138.21,31.53820239]
[1763324935146,6.50571286,138.25,138.21,31.53820239]
[1763324935340,22.6512,138.29,138.23,9.78882769]
[1763324935545,6.50571286,138.28,138.23,15.60454055]
[1763324935746,5.81571286,138.27,138.23,9.78882769]
[1763324935947,5.81571286,138.26,138.22,0.71]
[1763324936167,6.50571286,138.26,138.22,0.71]
[1763324936366,0.69,138.26,138.22,0.71]
[1763324936568,0.69,138.26,138.22,6.52571286]
[1763324936755,0.69,138.26,138.22,0.71]
[1763324938974,0.69,138.26,138.22,6.52571286]
[1763324939555,6.50571286,138.28,138.23,10.49882769]
[1763324939757,5.81571286,138.28,138.23,10.49882769]
[1763324939978,0.69,138.27,138.23,10.49882769]
[1763324942555,103.92,138.3,138.25,9.78882769]
[1763324942751,0.72,138.29,138.25,16.30454055]
[1763324943477,0.72,138.31,138.26,6.51571286]
[1763324943668,6.53571286,138.31,138.26,6.51571286]
[1763324943848,6.53571286,138.31,138.27,0.7]
[1763324944043,5.81571286,138.32,138.28,9.78882769]
[1763324944249,6.53571286,138.33,138.29,0.7]
[1763324944446,0.72,138.33,138.29,6.51571286]
[1763324944665,6.53571286,138.35,138.3,9.78882769]
[1763324944870,6.53571286,138.35,138.3,15.60454055]
[1763324945057,0.72,138.39,138.33,5.81571286]
[1763324945269,6.53571286,138.39,138.34,15.60454055]
[1763324945474,6.53571286,138.39,138.34,9.78882769]
[1763324945656,0.72,138.38,138.34,10.48882769]
[1763324946053,5.81571286,138.4,138.35,6.51571286]
[1763324946252,23.19571286,138.41,138.36,15.60454055]
[1763324946555,6.53571286,138.4,138.36,9.78882769]
[1763324946751,0.72,138.4,138.36,9.78882769]
[1763324946958,0.72,138.4,138.36,16.30454055]
[1763324947276,17.38,138.41,138.39,5.81571286]
[1763324947465,5.81571286,138.44,138.39,9.78882769]
[1763324947656,5.81571286,138.44,138.36,9.78882769]
[1763324947657,6.53571286,138.41,138.36,9.78882769]
[1763324947862,5.81571286,138.4,138.36,9.78882769]
[1763324948156,6.53571286,138.4,138.34,0.7]
[1763324948483,5.81571286,138.38,138.35,9.78882769]
[1763324948952,6.53571286,138.38,138.35,9.78882769]
[1763324949281,0.72,138.38,138.35,9.78882769]
[1763324949573,6.53571286,138.38,138.35,9.78882769]
[1763324949975,6.53571286,138.37,138.32,5.81571286]
[1763324950189,22.6512,138.42,138.31,21.73046974]
[1763324950190,5.81571286,138.35,138.31,21.73046974]
[1763324950649,0.72,138.36,138.25,0.7]
[1763324950650,5.81571286,138.32,138.25,0.7]
[1763324950972,5.81571286,138.29,138.25,6.51571286]
[1763324951183,5.81571286,138.31,138.26,5.81571286]
[1763324951387,5.81571286,138.31,138.26,0.7]
[1763324951591,6.53571286,138.31,138.27,0.7]
[1763324952259,5.81571286,138.3,138.26,9.78882769]
[1763324952452,5.81571286,138.3,138.27,0.7]
[1763324952772,6.53571286,138.3,138.26,9.78882769]
[1763324953069,5.81571286,138.29,138.26,9.78882769]
[1763324953247,5.81571286,138.29,138.26,10.48882769]
[1763324953777,6.53571286,138.3,138.26,10.48882769]
[1763324954786,10.12987999,138.28,138.23,10.82987999]
[1763324954951,10.12987999,138.27,138.24,9.78882769]
[1763324955152,10.12987999,138.27,138.24,10.48882769]
[1763324957179,10.12987999,138.28,138.24,10.48882769]
[1763324958481,10.12987999,138.25,138.21,9.78882769]
[1763324958660,0.66,138.27,138.19,21.7509516]
[1763324958661,10.12987999,138.23,138.19,21.7509516]
[1763324958865,10.12987999,138.2,138.18,0.2]
[1763324959071,10.12987999,138.19,138.18,0.2]
[1763324959253,10.12987999,138.19,138.14,0.2]
[1763324959457,0.66,138.25,138.14,0.2]
[1763324959458,10.12987999,138.15,138.14,0.2]
[1763324959670,22.6512,138.21,138.14,0.2]
[1763324959878,10.12987999,138.17,138.14,0.86]
[1763324960187,10.12987999,138.16,138.14,0.2]
[1763324960396,10.12987999,138.17,138.14,0.2]
[1763324960566,10.12987999,138.17,138.14,0.86]
[1763324961061,10.12987999,138.18,138.15,0.66]
[1763324961863,10.12987999,138.16,138.14,0.2]
[1763324962081,10.12987999,138.15,138.14,0.2]
[1763324963390,23.3112,138.18,138.14,0.2]
[1763324963565,10.12987999,138.18,138.14,0.86]
[1763324963887,22.6512,138.2,138.14,0.86]
[1763324964084,10.12987999,138.18,138.15,0.66]
[1763324964283,10.12987999,138.17,138.15,0.66]
[1763324964589,10.12987999,138.16,138.14,0.2]
[1763324964761,0.66,138.19,138.14,0.2]
[1763324964762,10.12987999,138.15,138.14,0.2]
[1763324965162,10.12987999,138.16,138.14,0.86]
[1763324966075,10.12987999,138.16,138.14,0.2]
[1763324966282,10.12987999,138.15,138.14,0.2]
[1763324967686,10.12987999,138.16,138.14,0.86]
[1763324968595,10.12987999,138.15,138.14,0.86]
[1763324968896,10.12987999,138.15,138.14,0.2]
[1763324970286,10.12987999,138.15,138.14,0.89]
[1763324970595,10.12987999,138.16,138.14,0.89]
[1763324970800,32.78107999,138.18,138.15,0.69]
[1763324971383,10.12987999,138.18,138.15,0.69]
[1763324971893,32.78107999,138.2,138.16,9.78882769]
[1763324972098,10.12987999,138.19,138.16,9.78882769]
[1763324972404,10.12987999,138.18,138.17,0.69]
[1763324972576,10.12987999,138.19,138.16,10.47882769]
[1763324973312,10.12987999,138.17,138.14,0.2]
[1763324973675,10.12987999,138.17,138.14,0.89]
[1763324973885,10.12987999,138.18,138.14,0.89]
[1763324974214,10.12987999,138.18,138.15,0.69]
[1763324974509,22.6512,138.2,138.15,0.69]
[1763324974510,10.12987999,138.19,138.15,0.69]
[1763324975577,32.78107999,138.2,138.15,0.69]
[1763324975777,10.12987999,138.19,138.15,0.69]
[1763324976777,32.78107999,138.2,138.16,9.78882769]
[1763324976978,32.78107999,138.2,138.17,0.69]
[1763324978611,103.2,138.22,138.18,19.91870768]
[1763324978980,103.2,138.22,138.19,0.69]
[1763324979907,113.32987999,138.22,138.19,0.69]
[1763324981090,103.2,138.22,138.19,0.69]
[1763324981492,103.2,138.22,138.19,10.81987999]
[1763324981697,10.12987999,138.26,138.21,10.12987999]
[1763324981892,10.12987999,138.26,138.2,20.60870768]
[1763324982202,32.78107999,138.26,138.21,0.69]
[1763324982402,10.12987999,138.25,138.21,0.69]
[1763324987006,10.12987999,138.23,138.19,0.69]
[1763324987321,10.12987999,138.23,138.18,9.78882769]
[1763324987490,10.12987999,138.23,138.18,10.47882769]
[1763324987690,10.12987999,138.23,138.19,0.69]
[1763324988009,10.84987999,138.22,138.18,9.78882769]
[1763324988195,10.12987999,138.2,138.16,0.69]
[1763324988395,10.12987999,138.2,138.16,10.47882769]
[1763324988804,10.12987999,138.19,138.14,10.32987999]
[1763324989011,10.12987999,138.19,138.15,0.69]
[1763324989210,10.12987999,138.2,138.15,10.81987999]
[1763324989713,10.12987999,138.2,138.16,0.69]
[1763324990012,10.12987999,138.19,138.16,0.69]
[1763324992124,10.84987999,138.18,138.14,0.2]
[1763324992294,0.72,138.18,138.14,0.89]
[1763324992504,10.12987999,138.17,138.14,0.89]
[1763324992828,10.12987999,138.17,138.14,0.2]
[1763324993040,10.84987999,138.17,138.14,0.2]
[1763324993700,10.12987999,138.17,138.14,0.89]
[1763324995025,0.72,138.22,138.16,19.91870768]
[1763324995317,10.12987999,138.19,138.15,0.69]
[1763324996026,10.12987999,138.18,138.14,0.2]
[1763324996205,10.12987999,138.18,138.14,0.89]
[1763324996717,10.12987999,138.18,138.15,0.69]
[1763324997922,10.12987999,138.19,138.15,0.69]
[1763324998101,10.84987999,138.19,138.15,0.69]
[1763324998620,10.84987999,138.19,138.15,0.69]
[1763325000323,10.12987999,138.18,138.15,0.69]
[1763325000634,10.82987999,138.19,138.15,0.69]
[1763325000805,4.52353656,138.19,138.15,0.69]
[1763325002999,3.82353656,138.18,138.15,0.69]
[1763325003212,4.52353656,138.19,138.15,0.69]
[1763325003725,26.47473656,138.16,138.14,0.2]
[1763325003929,3.82353656,138.15,138.14,0.2]
[1763325004134,4.52353656,138.15,138.14,0.2]
[1763325004629,50.0,138.21,138.14,0.9]
[1763325004835,27.17473656,138.2,138.15,3.82353656]
[1763325005030,22.6512,138.2,138.15,4.52353656]
[1763325005206,22.6512,138.2,138.16,0.7]
[1763325005912,23.3512,138.2,138.16,0.7]
[1763325006114,22.6512,138.2,138.16,4.52353656]
[1763325006521,22.6512,138.2,138.17,0.7]
[1763325006728,0.7,138.22,138.18,3.82353656]
[1763325006918,17.4,138.27,138.19,3.82353656]